bitfinex/quotes_BTCUSD_20251215
["timestamp","ask_amount","ask_price","bid_price","bid_amount"]
[1765822972771,0.0116451,85873.0,85869.0,0.08317]
[1765822973001,0.00011458,85873.0,85870.0,0.01164551]
[1765822973207,0.23301677,85873.0,85872.0,0.04751]
[1765822973541,0.23301677,85873.0,85872.0,0.12175]
[1765822973944,0.00011458,85873.0,85872.0,0.12175]
[1765822974144,0.00011458,85873.0,85871.0,0.01170852]
[1765822974145,0.23290478,85872.0,85871.0,0.01170852]
[1765822974348,0.2329075,85871.0,85869.0,0.00161287]
[1765822974544,0.2329075,85871.0,85870.0,0.04751]
[1765822974862,0.22916264,85871.0,85870.0,0.12175]
[1765822975980,0.23016264,85871.0,85870.0,0.12175]
[1765822976368,0.23116264,85871.0,85870.0,0.12175]
[1765822976555,0.23116264,85871.0,85870.0,0.1620373]
[1765822976981,0.23116264,85871.0,85870.0,0.12175]
[1765822977390,0.23116264,85871.0,85870.0,0.04751]
[1765822977637,0.24456711,85866.0,85863.0,0.03566]
[1765822977853,0.23292648,85864.0,85863.0,0.1099]
[1765822977993,0.23292648,85864.0,85863.0,0.148792]
[1765822978194,0.23292648,85864.0,85863.0,0.08317]
[1765822978590,0.23292648,85864.0,85863.0,0.15741]
[1765822979378,0.23292648,85864.0,85830.0,0.00239998]
[1765822979379,0.23296175,85851.0,85849.0,0.03566]
[1765822979583,0.23295361,85854.0,85852.0,0.23295904]
[1765822979776,0.24460233,85854.0,85853.0,0.11402967]
[1765822979986,0.24459906,85855.0,85853.0,0.12336287]
[1765822980179,0.24459906,85855.0,85854.0,0.12175]
[1765822980335,0.24459906,85855.0,85854.0,0.12336287]
[1765822980740,0.24065755,85855.0,85854.0,0.04912287]
[1765822981356,0.24065755,85855.0,85854.0,0.12336287]
[1765822981572,0.24065755,85855.0,85854.0,0.14121316]
[1765822981775,0.2329509,85855.0,85854.0,0.14121316]
[1765822982374,0.2329509,85855.0,85854.0,0.00161287]
[1765822982579,0.01164863,85847.0,85844.0,0.07191]
[1765822982800,0.23298618,85842.0,85841.0,0.01848]
[1765822983216,0.23298618,85842.0,85841.0,0.13611]
[1765822983584,0.23298618,85842.0,85841.0,0.13772287]
[1765822983792,0.22867185,85842.0,85841.0,0.15784064]
[1765822983997,0.22867185,85842.0,85841.0,0.15884064]
[1765822985521,0.22867185,85842.0,85841.0,0.15984064]
[1765822986697,0.22867185,85842.0,85841.0,0.02373064]
[1765822986902,0.22448545,85842.0,85841.0,0.00361287]
[1765822987041,0.01164903,85844.0,85841.0,0.12124287]
[1765822987242,0.24460775,85852.0,85848.0,0.23296984]
[1765822987492,0.23294884,85856.0,85854.0,0.01164768]
[1765822987624,0.23294884,85856.0,85855.0,0.0221729]
[1765822987833,0.23294884,85856.0,85855.0,0.02378577]
[1765822988041,0.23294884,85856.0,85855.0,0.14141577]
[1765822988261,0.01164727,85857.0,85855.0,0.14141577]
[1765822988468,0.2445945,85857.0,85856.0,0.089546]
[1765822988869,0.2445945,85857.0,85856.0,0.135266]
[1765822989569,0.01164659,85862.0,85856.0,0.16017368]
[1765822989875,0.23292106,85868.0,85865.0,0.23292329]
[1765822990006,0.01164537,85871.0,85867.0,0.01164591]
[1765822990209,0.00011458,85871.0,85870.0,0.00392342]
[1765822990411,0.00011458,85871.0,85870.0,0.04572]
[1765822990651,0.23290568,85872.0,85870.0,0.11924287]
[1765822990852,0.23290568,85872.0,85871.0,0.04037267]
[1765822991091,0.02509779,85873.0,85871.0,0.07352287]
[1765822991294,0.78877532,85880.0,85871.0,0.07352287]
[1765822991295,0.03128091,85884.0,85881.0,0.24452232]
[1765822991501,0.03128091,85886.0,85883.0,0.24451811]
[1765822991707,0.03128091,85886.0,85882.0,0.26780637]
[1765822991708,0.244513,85885.0,85884.0,0.07701038]
[1765822991881,0.25540936,85885.0,85884.0,0.07701038]
[1765822992126,0.25247161,85885.0,85884.0,0.07701038]
[1765822992341,0.23287766,85882.0,85881.0,0.00161287]
[1765822992558,0.23287766,85882.0,85881.0,0.00261287]
[1765822992739,0.23287766,85882.0,85881.0,0.04833287]
[1765822992966,0.23287766,85882.0,85881.0,0.04733287]
[1765822993205,0.23287766,85882.0,85881.0,0.06569064]
[1765822993402,0.23287766,85882.0,85881.0,0.13760064]
[1765822994127,0.23287766,85882.0,85881.0,0.13860064]
[1765822994540,0.23287766,85882.0,85881.0,0.06669064]
[1765822994754,0.23287766,85882.0,85881.0,0.13798777]
[1765822994755,0.22832824,85882.0,85881.0,0.13798777]
[1765822994957,0.22832824,85882.0,85881.0,0.002]
[1765822994958,0.27514824,85882.0,85881.0,0.002]
[1765822995160,0.43835631,85882.0,85881.0,0.002]
[1765822995357,0.22832824,85882.0,85881.0,0.002]
[1765822995573,0.22832824,85882.0,85881.0,0.001]
[1765822996183,0.23289936,85874.0,85873.0,0.03421]
[1765822996464,0.001,85882.0,85873.0,0.06972547]
[1765822996732,0.001,85882.0,85875.0,0.04572]
[1765822997291,0.01164374,85883.0,85875.0,0.04572]
[1765822997509,0.001,85882.0,85875.0,0.04572]
[1765822997725,0.23969048,85885.0,85875.0,0.04572]
[1765822997726,0.03189641,85883.0,85875.0,0.04572]
[1765822997933,0.04682,85876.0,85873.0,0.001]
[1765822998139,0.04682,85876.0,85871.0,0.01164537]
[1765822998336,0.11638807,85880.0,85873.0,0.0116451]
[1765822998565,0.11638807,85880.0,85874.0,0.01164496]
[1765822998765,0.001,85882.0,85881.0,0.23288038]
[1765822998986,0.001,85882.0,85881.0,0.31156664]
[1765822999336,0.001,85882.0,85881.0,0.38347664]
[1765822999490,0.74585026,85891.0,85890.0,0.23285597]
[1765822999693,0.08659444,85897.0,85892.0,0.01164252]
[1765822999900,0.01164198,85896.0,85892.0,0.01164252]
[1765823000124,0.23284288,85895.0,85891.0,0.24449589]
[1765823000459,0.01164212,85895.0,85892.0,0.01164252]
[1765823000660,0.23283993,85896.0,85893.0,0.01164239]
[1765823000804,0.00779192,85894.0,85890.0,0.01164279]
[1765823001009,0.00779192,85894.0,85891.0,0.24449578]
[1765823001237,0.00779192,85894.0,85890.0,0.01164279]
[1765823001238,0.01164252,85892.0,85887.0,0.2328628]
[1765823001430,0.01164252,85892.0,85888.0,0.03280598]
[1765823001791,0.01164252,85892.0,85888.0,0.26566678]
[1765823002012,0.11638807,85893.0,85890.0,0.2328554]
[1765823002190,0.11638807,85893.0,85890.0,0.24449819]
[1765823002389,0.001,85892.0,85890.0,0.23285372]
[1765823002618,0.001,85892.0,85891.0,0.0300589]
[1765823002821,0.23385055,85892.0,85891.0,0.0300589]
[1765823003031,0.01164374,85883.0,85880.0,0.02147235]
[1765823003234,0.23288038,85881.0,85880.0,0.02147235]
[1765823003435,0.01164401,85881.0,85876.0,0.01164469]
[1765823003646,0.01164401,85881.0,85875.0,0.24453897]
[1765823003647,0.01164415,85880.0,85874.0,0.11776496]
[1765823003856,0.01164415,85880.0,85875.0,0.08355483]
[1765823003857,0.24453059,85879.0,85875.0,0.08355483]
[1765823004071,0.01164388,85882.0,85877.0,0.01164456]
[1765823004269,0.24452154,85882.0,85880.0,0.001]
[1765823004426,0.23988933,85882.0,85880.0,0.001]
[1765823004625,0.23288038,85881.0,85880.0,0.001]
[1765823004869,0.01164374,85883.0,85880.0,0.06726897]
[1765823005234,0.23288038,85881.0,85880.0,0.001]
[1765823005432,0.01164334,85886.0,85880.0,0.04572]
[1765823005658,0.74585026,85890.0,85887.0,0.0116432]
[1765823005827,0.61619463,85910.0,85896.0,0.04572]
[1765823005828,0.01164171,85898.0,85896.0,0.04572]
[1765823005974,0.24447624,85898.0,85896.0,0.04572]
[1765823006186,0.23321908,85897.0,85896.0,0.11763]
[1765823006385,0.23321908,85897.0,85896.0,0.13288573]
[1765823006386,0.00038208,85897.0,85896.0,0.13288573]
[1765823006585,0.23321908,85897.0,85896.0,0.01525573]
[1765823006843,0.22895026,85889.0,85887.0,0.07352287]
[1765823007272,0.22895026,85889.0,85887.0,0.00161287]
[1765823007431,0.23285597,85890.0,85879.0,0.07191]
[1765823007432,0.2328785,85882.0,85879.0,0.07191]
[1765823007618,0.24451051,85886.0,85883.0,0.01164374]
[1765823007998,0.24451051,85886.0,85884.0,0.07191]
[1765823008169,0.24451051,85886.0,85885.0,0.08053684]
[1765823008528,0.01164307,85888.0,85885.0,0.08053684]
[1765823008742,0.01164307,85888.0,85885.0,0.15244684]
[1765823008938,0.24450447,85888.0,85887.0,0.04572]
[1765823009691,0.24439649,85890.0,85889.0,0.04572]
[1765823009894,0.0115381,85890.0,85886.0,0.11763]
[1765823010075,0.24439581,85890.0,85889.0,0.04572]
[1765823010271,0.2445126,85886.0,85883.0,0.01164374]
[1765823010475,0.01164293,85889.0,85887.0,0.002]
[1765823010643,0.2328614,85888.0,85887.0,0.003]
[1765823011050,0.2328614,85888.0,85887.0,0.002]
[1765823011472,0.2796814,85888.0,85887.0,0.002]
[1765823011678,0.23286953,85885.0,85884.0,0.01848]
[1765823012249,0.23287224,85884.0,85883.0,0.001]
[1765823012448,0.24454907,85873.0,85869.0,0.2329104]
[1765823012692,0.23290478,85872.0,85871.0,0.049011]
[1765823012889,0.22864489,85872.0,85871.0,0.098071]
[1765823013104,0.24454764,85873.0,85871.0,0.098071]
[1765823013498,0.01164483,85875.0,85873.0,0.232901]
[1765823013830,0.23290192,85874.0,85872.0,0.11923]
[1765823014117,0.23290192,85874.0,85873.0,0.10436467]
[1765823014275,0.01164469,85876.0,85873.0,0.23523977]
[1765823014547,0.24453017,85879.0,85873.0,0.23523977]
[1765823014548,0.24453563,85878.0,85875.0,0.04906]
[1765823014752,0.01164374,85883.0,85878.0,0.04906]
[1765823014938,0.01164388,85882.0,85878.0,0.24453218]
[1765823015136,0.01164361,85884.0,85882.0,0.04906]
[1765823015371,0.01164361,85884.0,85881.0,0.23287814]
[1765823015372,0.24451606,85884.0,85881.0,0.23287814]
[1765823015536,0.24451606,85884.0,85883.0,0.04906]
[1765823015755,0.01164198,85896.0,85885.0,0.01164347]
[1765823015963,0.01164252,85892.0,85887.0,0.0116432]
[1765823016142,0.01164266,85891.0,85890.0,0.04906]
[1765823016674,0.01164266,85891.0,85886.0,0.02830811]
[1765823016675,0.23286411,85887.0,85886.0,0.01666477]
[1765823017194,0.23286411,85887.0,85886.0,0.06572477]
[1765823017759,0.23286411,85887.0,85886.0,0.13589477]
[1765823018154,0.23286214,85888.0,85886.0,0.13589477]
[1765823018362,0.23286214,85888.0,85887.0,0.18489678]
[1765823018997,0.01164266,85891.0,85887.0,0.18489678]
[1765823019195,0.24449631,85891.0,85890.0,0.04906]
[1765823020472,0.24549631,85891.0,85890.0,0.04906]
[1765823021017,0.24254814,85891.0,85890.0,0.04906]
[1765823021226,0.001,85891.0,85890.0,0.32011829]
[1765823021433,0.001,85891.0,85890.0,0.39190116]
[1765823021648,0.23385326,85891.0,85890.0,0.15904519]
[1765823022048,0.23385326,85891.0,85890.0,0.03820232]
[1765823022260,0.23285326,85891.0,85890.0,0.01848]
[1765823022865,0.23285107,85892.0,85890.0,0.01948]
[1765823023077,0.23285326,85891.0,85890.0,0.01948]
[1765823023841,0.22866341,85891.0,85890.0,0.01948]
[1765823024283,0.27486341,85891.0,85890.0,0.01948]
[1765823024742,0.22866341,85891.0,85890.0,0.01848]
[1765823025135,0.22866341,85891.0,85890.0,0.01948]
[1765823025353,0.22866341,85891.0,85890.0,0.01848]
[1765823025553,0.22866341,85891.0,85890.0,0.01948]
[1765823025999,0.22866341,85891.0,85890.0,0.06854]
[1765823026191,0.06913734,85891.0,85890.0,0.11048227]
[1765823026683,0.06913734,85891.0,85890.0,0.06142227]
[1765823026841,0.06483268,85891.0,85890.0,0.06142227]
[1765823027268,0.23285107,85892.0,85890.0,0.18065227]
[1765823027465,0.23285107,85892.0,85891.0,0.11923]
[1765823027712,0.23285107,85892.0,85891.0,0.22723597]
[1765823027920,0.24448203,85896.0,85892.0,0.24448805]
[1765823028121,0.24448203,85896.0,85895.0,0.04906]
[1765823028797,0.00038208,85897.0,85895.0,0.12084287]
[1765823028995,0.00038208,85897.0,85896.0,0.40565884]
[1765823029346,0.00038208,85897.0,85896.0,0.47582884]
[1765823029833,0.01164103,85903.0,85902.0,0.00415811]
[1765823030039,0.23282344,85902.0,85901.0,0.11643441]
[1765823030173,0.22866533,85902.0,85901.0,0.13652728]
[1765823030370,0.23293753,85903.0,85901.0,0.31076093]
[1765823030573,0.23293753,85903.0,85902.0,0.11923]
[1765823030797,0.23293753,85903.0,85902.0,0.04906]
[1765823031408,0.23293753,85903.0,85902.0,0.11923]
[1765823031581,0.23393753,85903.0,85902.0,0.11923]
[1765823031797,0.23393753,85903.0,85902.0,0.13432648]
[1765823031986,0.23493753,85903.0,85902.0,0.06415648]
[1765823032332,0.23493753,85903.0,85902.0,0.11923]
[1765823032723,0.23493753,85903.0,85902.0,0.04906]
[1765823032933,0.23127945,85903.0,85902.0,0.04906]
[1765823034618,0.002,85903.0,85902.0,0.23727728]
[1765823034820,0.23167913,85903.0,85902.0,0.09126773]
[1765823035064,0.23283971,85896.0,85895.0,0.07017]
[1765823035387,0.23283971,85896.0,85889.0,0.0362]
[1765823035388,0.23285111,85892.0,85889.0,0.0362]
[1765823035589,0.23285326,85891.0,85890.0,0.01848]
[1765823035805,0.23285326,85891.0,85890.0,0.04627416]
[1765823037044,0.23285326,85891.0,85890.0,0.02779416]
[1765823037045,0.27905326,85891.0,85890.0,0.02779416]
[1765823037264,0.23285597,85890.0,85889.0,0.00011456]
[1765823037646,0.23285597,85890.0,85889.0,0.04917456]
[1765823037891,0.23285597,85890.0,85889.0,0.11934456]
[1765823038060,0.22910464,85890.0,85889.0,0.13674702]
[1765823039020,0.22910464,85890.0,85889.0,0.00011456]
[1765823039021,0.27530464,85890.0,85889.0,0.00011456]
[1765823039219,0.61282464,85890.0,85889.0,0.00011456]
[1765823039492,0.75435417,85890.0,85889.0,0.00011456]
[1765823039916,0.75145,85890.0,85889.0,0.00011456]
[1765823040440,1.76236277,85890.0,85889.0,0.00011456]
[1765823040640,1.79472201,85890.0,85889.0,0.00011456]
[1765823040783,1.89420864,85890.0,85889.0,0.00011456]
[1765823040998,1.89420864,85890.0,85831.0,0.02846211]
[1765823040999,0.01164971,85839.0,85836.0,0.10637]
[1765823041204,0.23299747,85838.0,85837.0,0.0362]
[1765823041781,0.23299747,85838.0,85837.0,0.08212]
[1765823042027,0.23299747,85838.0,85837.0,0.15372]
[1765823042600,0.23299747,85838.0,85837.0,0.08212]
[1765823043087,0.23299747,85838.0,85837.0,0.15372]
[1765823043678,0.23399747,85838.0,85837.0,0.15372]
[1765823043926,0.23399747,85838.0,85837.0,0.1729115]
[1765823044100,0.23399747,85838.0,85837.0,0.0362]
[1765823044501,0.23399747,85838.0,85837.0,0.08212]
[1765823044730,0.23399747,85838.0,85837.0,0.15372]
[1765823047359,0.23399747,85838.0,85837.0,0.08212]
[1765823047566,0.23399747,85838.0,85837.0,0.15372]
[1765823047805,0.23399747,85838.0,85837.0,0.1729115]
[1765823048441,0.001,85838.0,85837.0,0.17452437]
[1765823048645,0.001,85838.0,85837.0,0.19782434]
[1765823048844,0.001,85838.0,85837.0,0.17452437]
[1765823049638,0.01164876,85846.0,85839.0,0.01164971]
[1765823049861,0.01164876,85846.0,85840.0,0.08586871]
[1765823049862,0.01164903,85844.0,85840.0,0.08586871]
[1765823050051,0.01164903,85844.0,85840.0,0.147432]
[1765823050255,0.24462978,85844.0,85843.0,0.04592]
[1765823050634,0.24462978,85844.0,85840.0,0.00161287]
[1765823050635,0.23298889,85841.0,85840.0,0.00161287]
[1765823050843,0.34937696,85841.0,85840.0,0.00161287]
[1765823051255,0.23299975,85837.0,85836.0,0.00038208]
[1765823052271,0.23299975,85837.0,85836.0,0.11790208]
[1765823052473,0.23299975,85837.0,85836.0,0.12973229]
[1765823052899,0.23299975,85837.0,85836.0,0.13073229]
[1765823054176,0.23299975,85837.0,85836.0,0.01321229]
[1765823054380,0.23299975,85837.0,85836.0,0.04730208]
[1765823055501,0.23299975,85837.0,85836.0,0.11890208]
[1765823057208,0.23299975,85837.0,85836.0,0.12051495]
[1765823059005,0.23299975,85837.0,85836.0,0.00299495]
[1765823059718,0.23299975,85837.0,85836.0,0.12051495]
[1765823059962,0.23299975,85837.0,85836.0,0.13260644]
[1765823063223,0.23299975,85837.0,85836.0,0.06100644]
[1765823063568,0.23299975,85837.0,85836.0,0.13260644]
[1765823063780,0.23299975,85837.0,85836.0,0.12051495]
[1765823066828,0.02500359,85838.0,85837.0,0.23299975]
[1765823067029,0.03141371,85850.0,85845.0,0.23297595]
[1765823067256,0.03132326,85850.0,85849.0,0.2446148]
[1765823067385,0.03132326,85852.0,85850.0,0.23296447]
[1765823067587,0.03132326,85852.0,85851.0,0.11752]
[1765823067805,0.03132326,85852.0,85851.0,0.14242904]
[1765823068032,0.03132326,85853.0,85852.0,0.23295904]
[1765823068243,0.04188495,85855.0,85854.0,0.04592]
[1765823068574,0.01088933,85855.0,85854.0,0.14276436]
[1765823068720,0.01088933,85855.0,85854.0,0.44731797]
[1765823068923,0.04188495,85859.0,85857.0,0.23294547]
[1765823069121,0.01164673,85861.0,85858.0,0.23294276]
[1765823069335,0.01164673,85861.0,85860.0,0.08222]
[1765823069532,0.255487,85861.0,85860.0,0.25342955]
[1765823069731,0.31831443,85861.0,85860.0,0.15382]
[1765823070031,0.31420079,85861.0,85860.0,0.15382]
[1765823071864,0.01164686,85860.0,85857.0,0.00161287]
[1765823072071,0.23294276,85858.0,85857.0,0.00161287]
[1765823072270,0.24384823,85858.0,85857.0,0.00161287]
[1765823072444,0.24384823,85858.0,85857.0,0.04989287]
[1765823072628,0.24384823,85858.0,85857.0,0.13140651]
[1765823072823,0.01090547,85858.0,85857.0,0.13140651]
[1765823073030,0.23977998,85858.0,85857.0,0.13140651]
[1765823073648,0.00683722,85858.0,85857.0,0.13140651]
[1765823073845,0.23977998,85858.0,85857.0,0.05837651]
[1765823074078,0.00683722,85858.0,85857.0,0.05837651]
[1765823074231,0.00683722,85858.0,85857.0,0.13140651]
[1765823074232,0.23977998,85858.0,85857.0,0.13140651]
[1765823074919,0.23977998,85858.0,85857.0,0.00848364]
[1765823075074,0.01164727,85857.0,85852.0,0.01164795]
[1765823075420,0.23294276,85858.0,85857.0,0.08446]
[1765823076787,0.23294276,85858.0,85857.0,0.15749]
[1765823077536,0.04187699,85862.0,85859.0,0.011647]
[1765823077708,0.23291046,85870.0,85865.0,0.23292377]
[1765823077709,0.04187699,85866.0,85865.0,0.23292377]
[1765823077909,0.04187699,85866.0,85865.0,0.23453664]
[1765823078111,0.04187699,85867.0,85866.0,0.23292106]
[1765823078320,0.04187699,85870.0,85867.0,0.23291835]
[1765823078527,0.04187699,85870.0,85868.0,0.23291418]
[1765823078764,0.04187699,85872.0,85870.0,0.23748112]
[1765823078968,0.06699072,85871.0,85870.0,0.00425287]
[1765823079081,0.02086086,85871.0,85870.0,0.35422021]
[1765823079281,0.02086086,85871.0,85870.0,0.35583308]
[1765823079491,0.02086086,85871.0,85870.0,0.12292287]
[1765823079691,0.25376836,85871.0,85870.0,0.21630201]
[1765823079896,0.25376836,85871.0,85870.0,0.14327201]
[1765823080110,0.25376836,85871.0,85870.0,0.00161287]
[1765823080329,0.23291292,85869.0,85868.0,0.00038208]
[1765823080540,0.39529099,85869.0,85868.0,0.00038208]
[1765823080733,0.44211099,85869.0,85868.0,0.00038208]
[1765823080953,0.43820247,85869.0,85868.0,0.00038208]
[1765823081124,0.2290044,85869.0,85868.0,0.00038208]
[1765823081354,0.5543971,85869.0,85868.0,0.00038208]
[1765823081732,0.61722453,85869.0,85868.0,0.00038208]
[1765823081933,0.90792453,85869.0,85868.0,0.00038208]
[1765823082165,0.8450971,85869.0,85868.0,0.00038208]
[1765823082367,0.90785253,85869.0,85868.0,0.00038208]
[1765823082585,0.8450971,85869.0,85868.0,0.00038208]
[1765823082788,0.84184619,85869.0,85868.0,0.00038208]
[1765823083023,1.84284619,85869.0,85868.0,0.00038208]
[1765823083405,1.84384619,85869.0,85868.0,0.00038208]
[1765823084003,1.84184619,85869.0,85868.0,0.00038208]
[1765823084233,1.84484619,85869.0,85868.0,0.00038208]
[1765823084476,1.84784619,85869.0,85868.0,0.00038208]
[1765823084611,1.84184619,85869.0,85868.0,0.00038208]
[1765823085062,0.64004982,85851.0,85850.0,0.01484426]
[1765823085238,0.64004982,85851.0,85850.0,0.01495884]
[1765823085239,0.80223445,85851.0,85850.0,0.01495884]
[1765823085443,0.83362008,85851.0,85850.0,0.00011458]
[1765823085641,0.83405445,85851.0,85850.0,0.00011458]
[1765823086028,0.82988108,85851.0,85850.0,0.00011458]
[1765823086231,0.86126642,85851.0,85850.0,0.00011458]
[1765823086457,0.86226642,85851.0,85850.0,0.00011458]
[1765823086995,0.81544642,85851.0,85850.0,0.00011458]
[1765823087149,0.78406108,85851.0,85850.0,0.00011458]
[1765823087344,0.79495839,85851.0,85850.0,0.00011458]
[1765823087569,0.83780595,85851.0,85850.0,0.00011458]
[1765823087887,0.88462595,85851.0,85850.0,0.00011458]
[1765823088100,0.83780595,85851.0,85850.0,0.00011458]
[1765823088271,0.84277839,85851.0,85850.0,0.00011458]
[1765823088874,0.79595839,85851.0,85850.0,0.00011458]
[1765823089063,0.79146251,85851.0,85850.0,0.00011458]
[1765823090600,0.83828251,85851.0,85850.0,0.00011458]
[1765823090998,1.83828251,85851.0,85850.0,0.00011458]
[1765823091201,1.92620633,85851.0,85850.0,0.00011458]
[1765823091518,1.86340318,85851.0,85850.0,0.00011458]
[1765823091939,1.85847856,85851.0,85850.0,0.00011458]
[1765823092144,1.92328169,85851.0,85850.0,0.00011458]
[1765823092515,1.63033326,85851.0,85850.0,0.00011458]
[1765823092868,1.86229501,85851.0,85850.0,0.00011458]
[1765823093235,1.86429501,85851.0,85850.0,0.00011458]
[1765823093437,1.95617993,85851.0,85850.0,0.00011458]
[1765823093623,1.9143134,85851.0,85850.0,0.00011458]
[1765823093803,1.92104168,85851.0,85850.0,0.00011458]
[1765823094016,1.96290737,85851.0,85850.0,0.00011458]
[1765823094218,1.92104168,85851.0,85850.0,0.00011458]
[1765823094432,1.91704168,85851.0,85850.0,0.00011458]
[1765823094861,1.92304168,85851.0,85850.0,0.00011458]
[1765823095184,1.9155437,85851.0,85850.0,0.00011458]
[1765823095326,1.9185437,85851.0,85850.0,0.00011458]
[1765823096549,1.9155437,85851.0,85850.0,0.00011458]
[1765823096748,2.1616437,85851.0,85850.0,0.00011458]
[1765823097958,2.1594134,85851.0,85850.0,0.00011458]
[1765823098189,2.15824728,85851.0,85850.0,0.00011458]
[1765823098947,2.20010879,85851.0,85850.0,0.00011458]
[1765823099322,2.15824728,85851.0,85850.0,0.00011458]
[1765823100077,2.15324728,85851.0,85850.0,0.00011458]
[1765823100289,2.15524728,85851.0,85850.0,0.00011458]
[1765823100494,2.15824728,85851.0,85850.0,0.00011458]
[1765823100751,2.15624728,85851.0,85850.0,0.00011458]
[1765823101176,2.16024728,85851.0,85850.0,0.00011458]
[1765823103191,1.64010411,85831.0,85830.0,0.0004]
[1765823103393,1.97293478,85831.0,85830.0,0.00051482]
[1765823103594,2.13594941,85831.0,85830.0,0.00051482]
[1765823104731,2.13594941,85831.0,85830.0,0.00151482]
[1765823106394,2.24731528,85831.0,85830.0,0.00151482]
[1765823106514,2.1859678,85831.0,85830.0,0.00151482]
[1765823107221,1.1859678,85831.0,85830.0,0.00151482]
[1765823107427,2.1859678,85831.0,85830.0,0.00051482]
[1765823107648,2.1869678,85831.0,85830.0,0.00051482]
[1765823107877,2.1978396,85831.0,85830.0,0.00051482]
[1765823108057,2.1869678,85831.0,85830.0,0.00051482]
[1765823108265,1.1869678,85831.0,85830.0,0.00051482]
[1765823108430,2.21828114,85831.0,85830.0,0.00051482]
[1765823108631,2.19980114,85831.0,85830.0,0.00051482]
[1765823108909,2.09212941,85831.0,85830.0,0.00051482]
[1765823109444,1.00339874,85831.0,85830.0,0.00051482]
[1765823109592,0.35221067,85831.0,85830.0,0.00051482]
[1765823110156,0.64291067,85831.0,85830.0,0.00051482]
[1765823110357,0.64091067,85831.0,85830.0,0.00051482]
[1765823110638,0.80142874,85831.0,85830.0,0.00051482]
[1765823110860,0.84824874,85831.0,85830.0,0.00151482]
[1765823111039,1.87332801,85831.0,85830.0,0.00151482]
[1765823112424,1.04160801,85831.0,85830.0,0.00151482]
[1765823113049,0.87332801,85831.0,85830.0,0.00151482]
[1765823113266,1.87332801,85831.0,85830.0,0.00151482]
[1765823113445,0.93890801,85831.0,85830.0,0.00151482]
[1765823113650,0.98572801,85831.0,85830.0,0.00151482]
[1765823114291,1.82650801,85831.0,85830.0,0.00151482]
[1765823114734,1.87332801,85831.0,85830.0,0.00151482]
[1765823115031,1.37428994,85831.0,85830.0,0.00151482]
[1765823115224,1.49067801,85831.0,85830.0,0.00151482]
[1765823115766,1.53580801,85831.0,85830.0,0.00151482]
[1765823115925,1.87332801,85831.0,85830.0,0.00151482]
[1765823117003,1.72011307,85831.0,85830.0,0.00151482]
[1765823117658,1.72011307,85831.0,85830.0,0.12196482]
[1765823117659,0.66498994,85831.0,85830.0,0.12196482]
[1765823118181,0.63991067,85831.0,85830.0,0.12196482]
[1765823118385,0.66499746,85831.0,85830.0,0.05057482]
[1765823118561,0.78138553,85831.0,85830.0,0.00151482]
[1765823118761,0.85782887,85831.0,85830.0,0.00151482]
[1765823119146,0.82651553,85831.0,85830.0,0.00151482]
[1765823119357,1.87333553,85831.0,85830.0,0.00151482]
[1765823119560,1.88422683,85831.0,85830.0,0.00151482]
[1765823120645,1.94451691,85831.0,85830.0,0.00151482]
[1765823120855,1.90270683,85831.0,85830.0,0.00151482]
[1765823121673,1.90270683,85831.0,85830.0,0.00051482]
[1765823121873,1.95472522,85831.0,85830.0,0.00051482]
[1765823122071,1.95572522,85831.0,85830.0,0.00051482]
[1765823126533,1.67713252,85828.0,85827.0,1e-08]
[1765823126741,1.71311061,85828.0,85827.0,1e-08]
[1765823126878,1.78559093,85828.0,85827.0,1e-08]
[1765823127749,1.78659093,85828.0,85827.0,1e-08]
[1765823129023,1.87470761,85828.0,85827.0,1e-08]
[1765823129176,1.5766528,85828.0,85827.0,1e-08]
[1765823129377,1.64110445,85828.0,85827.0,1e-08]
[1765823130387,1.65958445,85828.0,85827.0,1e-08]
[1765823131386,1.5968228,85828.0,85827.0,1e-08]
[1765823132431,1.8409228,85828.0,85827.0,1e-08]
[1765823133218,1.90368445,85828.0,85827.0,1e-08]
[1765823133417,1.8409215,85828.0,85827.0,1e-08]
[1765823133796,0.2330269,85827.0,85826.0,1e-08]
[1765823134040,1.91546203,85827.0,85826.0,1e-08]
[1765823134245,1.91546203,85827.0,85795.0,0.00985677]
[1765823134246,1.64014212,85817.0,85795.0,0.00985677]
[1765823134400,1.69628891,85817.0,85795.0,0.00985677]
[1765823134613,1.69797891,85817.0,85795.0,0.00985677]
[1765823135739,0.00999313,85815.0,85795.0,0.00985677]
[1765823135949,1.5731094,85815.0,85795.0,0.00985677]
[1765823136133,1.61489647,85815.0,85795.0,0.00985677]
[1765823136335,1.5731094,85815.0,85795.0,0.00985677]
[1765823136535,0.29137105,85796.0,85795.0,0.00985677]
[1765823136742,0.29306105,85796.0,85795.0,0.00985677]
[1765823137788,0.29137105,85796.0,85795.0,0.00985677]
[1765823137988,0.2331111,85796.0,85795.0,0.05884677]
[1765823138177,0.2331111,85796.0,85795.0,0.13186677]
[1765823138378,0.2331111,85796.0,85795.0,0.13286677]
[1765823138559,0.2331111,85796.0,85795.0,0.05984677]
[1765823138902,0.2331111,85796.0,85795.0,0.13286677]
[1765823139229,0.2331111,85796.0,85795.0,0.05984677]
[1765823139447,0.2331111,85796.0,85795.0,0.01185677]
[1765823139687,0.34949917,85796.0,85795.0,0.01185677]
[1765823140009,0.35287917,85796.0,85795.0,0.01185677]
[1765823140210,0.64357917,85796.0,85795.0,0.01185677]
[1765823140432,0.66694164,85796.0,85795.0,0.01185677]
[1765823141402,0.66694164,85796.0,85795.0,0.00985677]
[1765823141981,0.60712352,85796.0,85795.0,0.00985677]
[1765823142175,0.54886357,85796.0,85795.0,0.00985677]
[1765823142375,0.66525164,85796.0,85795.0,0.00985677]
[1765823143009,0.66694164,85796.0,85795.0,0.00985677]
[1765823143216,0.66794164,85796.0,85795.0,0.00985677]
[1765823145178,0.66963164,85796.0,85795.0,0.00985677]
[1765823145394,0.67779841,85796.0,85795.0,0.00985677]
[1765823145948,0.67948841,85796.0,85795.0,0.00985677]
[1765823146812,0.67948841,85796.0,85795.0,0.00997134]
[1765823146813,0.44637731,85796.0,85795.0,0.00997134]
[1765823147012,0.65274594,85796.0,85795.0,0.00997134]
[1765823147335,1.67779841,85796.0,85795.0,0.00997134]
[1765823147492,1.67948841,85796.0,85795.0,0.00997134]
[1765823150539,1.56310034,85796.0,85795.0,0.00997134]
[1765823150710,1.69627841,85796.0,85795.0,0.00997134]
[1765823151112,1.69458841,85796.0,85795.0,0.00997134]
[1765823151314,1.67610841,85796.0,85795.0,0.00997134]
[1765823153373,0.55972034,85796.0,85795.0,0.00997134]
[1765823156190,0.55972034,85796.0,85795.0,0.14271547]
[1765823156980,0.55972034,85796.0,85795.0,0.13098134]
[1765823157396,0.55972034,85796.0,85795.0,0.05796134]
[1765823157616,0.55972034,85796.0,85795.0,0.00997134]
[1765823158455,0.55972034,85796.0,85795.0,0.05796134]